bitfinex-derivatives/quotes_BTCF0:USTF0_20250327
["timestamp","ask_amount","ask_price","bid_price","bid_amount"]
[1743068167176,0.1487854,87551.0,87550.0,0.1774867]
[1743068170378,0.1162854,87551.0,87550.0,0.1774867]
[1743068170969,0.1496854,87551.0,87550.0,0.1774867]
[1743068173680,0.1805854,87551.0,87550.0,0.1774867]
[1743068178182,0.1805854,87551.0,87550.0,1.6774867]
[1743068179085,0.1805854,87551.0,87550.0,2.0382867]
[1743068180679,0.1805854,87551.0,87550.0,2.05304772]
[1743068182684,0.1805854,87551.0,87550.0,1.69224772]
[1743068182994,0.1805854,87551.0,87550.0,2.05304772]
[1743068183878,0.1805854,87551.0,87550.0,0.55304772]
[1743068184685,0.1805854,87551.0,87550.0,0.19224772]
[1743068184878,0.1805854,87551.0,87550.0,0.55304772]
[1743068185080,0.1805854,87551.0,87550.0,0.5382867]
[1743068188390,0.1162854,87551.0,87550.0,2.0382867]
[1743068188687,0.1477854,87551.0,87550.0,2.0382867]
[1743068189489,0.1477854,87551.0,87550.0,2.05305554]
[1743068189684,0.1808854,87551.0,87550.0,2.05305554]
[1743068190386,0.1808854,87551.0,87550.0,0.40824884]
[1743068190575,0.1808854,87551.0,87550.0,0.01544884]
[1743068190983,0.114208,87549.0,87548.0,3.65]
[1743068191184,0.1142093,87548.0,87547.0,0.27298253]
[1743068191386,0.0571063,87546.0,87545.0,0.34114683]
[1743068191584,0.4179063,87546.0,87545.0,0.34182683]
[1743068191886,0.4858863,87546.0,87545.0,0.34182683]
[1743068192982,0.1250863,87546.0,87545.0,0.34182683]
[1743068193790,0.1240863,87546.0,87545.0,0.34182683]
[1743068194185,0.1552863,87546.0,87545.0,0.34182683]
[1743068194596,0.1552863,87546.0,87545.0,0.34282683]
[1743068194893,0.1552863,87546.0,87545.0,0.45704003]
[1743068195085,0.1552863,87546.0,87545.0,0.1158932]
[1743068196191,0.2695663,87546.0,87545.0,0.1158932]
[1743068196989,0.2695663,87546.0,87545.0,0.00168]
[1743068198099,0.2695663,87546.0,87545.0,0.001]
[1743068198396,0.2695663,87546.0,87545.0,0.00188]
[1743068201988,0.2695663,87546.0,87545.0,0.001]
[1743068202392,0.2695663,87546.0,87545.0,0.0016]
[1743068202996,0.2695663,87546.0,87545.0,0.001]
[1743068204198,0.2695663,87546.0,87545.0,0.0016]
[1743068204701,0.1552863,87546.0,87545.0,0.0016]
[1743068204894,0.2693663,87546.0,87545.0,0.0016]
[1743068206198,0.2693663,87546.0,87545.0,3.651]
[1743068206403,0.2684863,87546.0,87545.0,3.6516]
[1743068222202,0.6301263,87546.0,87545.0,3.6516]
[1743068222403,0.6301263,87546.0,87545.0,3.6077111]
[1743068223614,0.63871763,87546.0,87545.0,3.6077111]
[1743068225216,0.1142341,87529.0,87528.0,0.00017139]
[1743068225403,0.58927411,87529.0,87528.0,0.00081139]
[1743068225609,0.68477411,87529.0,87528.0,0.00081139]
[1743068227006,0.68477411,87529.0,87528.0,0.06431139]
[1743068227205,0.68477411,87529.0,87528.0,0.06731139]
[1743068228316,0.69606509,87529.0,87528.0,0.06731139]
[1743068228817,0.69606509,87529.0,87528.0,0.06931139]
[1743068229014,0.69606509,87529.0,87528.0,0.06867139]
[1743068241518,0.33526509,87529.0,87528.0,0.06867139]
[1743068241825,0.69606509,87529.0,87528.0,0.06867139]
[1743068245325,0.58286509,87529.0,87528.0,0.06867139]
[1743068245516,0.69518509,87529.0,87528.0,0.06867139]
[1743068245823,0.00104001,87529.0,87528.0,0.19440503]
[1743068246026,0.1142255,87536.0,87535.0,0.0571131]
[1743068246233,0.1142255,87536.0,87535.0,0.1202131]
[1743068246416,0.1153055,87536.0,87535.0,0.1202131]
[1743068246723,0.1153055,87536.0,87535.0,1.6202131]
[1743068247323,0.1153055,87536.0,87535.0,1.5641]
[1743068248926,0.1478055,87536.0,87535.0,1.5641]
[1743068250423,0.1153055,87536.0,87535.0,1.5641]
[1743068256836,0.1481055,87536.0,87535.0,1.5641]
[1743068263932,0.1805055,87536.0,87535.0,1.5641]
[1743068264940,0.1794255,87536.0,87535.0,1.5641]
[1743068265140,0.1804255,87536.0,87535.0,1.5641]
[1743068265341,0.1804255,87536.0,87535.0,0.0334]
[1743068265640,0.2923855,87536.0,87535.0,0.0328]
[1743068266030,0.2923855,87536.0,87535.0,0.0334]
[1743068266732,0.2923855,87536.0,87535.0,0.0328]
[1743068267432,0.2923855,87536.0,87535.0,0.001]
[1743068267932,0.2923855,87536.0,87528.0,0.00017139]
[1743068268141,0.4750341,87529.0,87528.0,0.00017139]
[1743068268341,0.4760341,87529.0,87528.0,0.00077139]
[1743068268540,0.5370341,87529.0,87528.0,0.00017139]
[1743068270241,0.5370341,87529.0,87528.0,0.00517139]
[1743068276440,0.1762341,87529.0,87528.0,0.00517139]
[1743068276640,0.5370341,87529.0,87528.0,0.00517139]
[1743068277242,0.5370341,87529.0,87528.0,9e-08]
[1743068279042,0.9536341,87529.0,87528.0,9e-08]
[1743068279250,0.9536341,87529.0,87508.0,0.0631]
[1743068279251,0.114255,87513.0,87508.0,0.0631]
[1743068279439,0.587735,87513.0,87512.0,0.00105708]
[1743068279743,0.683235,87513.0,87512.0,0.00045708]
[1743068280445,0.683235,87513.0,87512.0,0.00245708]
[1743068280638,0.683235,87513.0,87512.0,0.00445708]
[1743068280838,0.683235,87513.0,87512.0,0.06755708]
[1743068281342,0.69488038,87513.0,87512.0,0.06755708]
[1743068285745,0.33408038,87513.0,87512.0,0.06755708]
[1743068285944,0.69488038,87513.0,87512.0,0.06755708]
[1743068288240,0.33408038,87513.0,87512.0,0.06755708]
[1743068288446,0.69488038,87513.0,87512.0,0.06755708]
[1743068289747,0.48770038,87513.0,87512.0,0.06755708]
[1743068289949,0.476055,87513.0,87512.0,0.18181338]
[1743068290252,0.115255,87513.0,87512.0,0.18249338]
[1743068290447,0.115255,87513.0,87512.0,1.68249338]
[1743068290648,0.114255,87513.0,87512.0,1.68249338]
[1743068294853,0.114255,87513.0,87512.0,0.18249338]
[1743068295253,0.115255,87513.0,87512.0,0.18249338]
[1743068295448,0.114255,87513.0,87512.0,0.18249338]
[1743068298551,0.115255,87513.0,87512.0,0.18249338]
[1743068298948,0.114255,87513.0,87512.0,0.18249338]
[1743068303360,0.11529501,87513.0,87512.0,0.18249338]
[1743068305259,0.14679501,87513.0,87512.0,0.18249338]
[1743068306063,0.11529501,87513.0,87512.0,0.18249338]
[1743068307254,0.14649501,87513.0,87512.0,0.18249338]
[1743068313970,0.17839501,87513.0,87512.0,0.18249338]
[1743068318359,0.17839501,87513.0,87512.0,0.00513708]
[1743068318574,0.53919501,87513.0,87512.0,0.00513708]
[1743068318765,0.64995501,87513.0,87512.0,0.00513708]
[1743068321973,0.64995501,87513.0,87512.0,0.00445708]
[1743068322173,0.64983501,87513.0,87512.0,0.00445708]
[1743068322671,0.64983501,87513.0,87512.0,0.00505708]
[1743068332189,0.64983501,87513.0,87512.0,0.03795708]
[1743068332475,0.64963501,87513.0,87512.0,0.03795708]
[1743068335173,0.64963501,87513.0,87512.0,0.06985708]
[1743068335984,0.64963501,87513.0,87512.0,0.03795708]
[1743068336982,0.64963501,87513.0,87512.0,0.00505708]
[1743068339776,0.64963501,87513.0,87512.0,0.00445708]
[1743068341187,0.64963501,87513.0,87512.0,0.06655708]
[1743068346670,0.53919501,87513.0,87512.0,0.06655708]
[1743068346976,0.64959501,87513.0,87512.0,0.06655708]
[1743068360380,0.64959501,87513.0,87509.0,8e-05]
[1743068360381,0.0571288,87511.0,87509.0,8e-05]
[1743068360586,0.0571301,87509.0,87500.0,8e-05]
[1743068360882,0.4750706,87501.0,87500.0,0.0006]
[1743068361087,0.5864706,87501.0,87500.0,0.0006]
[1743068361285,0.1142719,87500.0,87496.0,0.00045716]
[1743068361491,0.1153519,87500.0,87499.0,0.20525115]
[1743068361789,0.1760519,87500.0,87499.0,0.20525115]
[1743068361995,0.1710519,87500.0,87499.0,0.20525115]
[1743068362387,0.1710519,87500.0,87499.0,0.21025115]
[1743068363287,0.2814519,87500.0,87499.0,0.00568]
[1743068363489,0.29275778,87500.0,87499.0,0.005]
[1743068363888,0.65355778,87500.0,87499.0,0.005]
[1743068364700,0.66209504,87500.0,87499.0,0.005]
[1743068373812,0.66209504,87500.0,87499.0,0.00539991]
[1743068379112,0.66209504,87500.0,87499.0,0.005]
[1743068379307,0.66209504,87500.0,87499.0,0.00539991]
[1743068379703,0.30129504,87500.0,87499.0,0.00539991]
[1743068379903,0.66209504,87500.0,87499.0,0.00539991]
[1743068383220,0.63079504,87500.0,87499.0,0.00539991]
[1743068383418,0.63079504,87500.0,87499.0,0.005]
[1743068383816,0.58808916,87500.0,87499.0,0.00539991]
[1743068384018,0.11688916,87500.0,87499.0,0.00539991]
[1743068384316,0.11688916,87500.0,87499.0,0.00599991]
[1743068384513,0.11688916,87500.0,87499.0,1.50599991]
[1743068384714,0.11688916,87500.0,87499.0,0.06849991]
[1743068386908,0.14688916,87500.0,87499.0,0.06849991]
[1743068387114,0.14688916,87500.0,87499.0,0.06789991]
[1743068387517,0.14688916,87500.0,87499.0,0.06857991]
[1743068388219,0.17708916,87500.0,87499.0,0.06857991]
[1743068388425,0.17708916,87500.0,87499.0,0.06818]
[1743068388629,0.17708916,87500.0,87499.0,0.0675]
[1743068388814,0.17708916,87500.0,87499.0,0.06789991]
[1743068389121,0.17708916,87500.0,87499.0,0.06849991]
[1743068397518,0.17708916,87500.0,87499.0,0.18277321]
[1743068397826,0.17708916,87500.0,87499.0,0.06849991]
[1743068398021,0.17708916,87500.0,87499.0,0.18277321]
[1743068398823,0.1685519,87500.0,87499.0,0.18277321]
[1743068401321,0.1685519,87500.0,87499.0,0.06849991]
[1743068401522,0.1685519,87500.0,87499.0,0.18277321]
[1743068402031,0.1383519,87500.0,87499.0,0.06849991]
[1743068402229,0.1712519,87500.0,87499.0,0.06849991]
[1743068403235,0.1712519,87500.0,87499.0,0.18277321]
[1743068404228,0.1701719,87500.0,87499.0,0.18277321]
[1743068406237,0.1711719,87500.0,87499.0,0.18277321]
[1743068407635,0.1711719,87500.0,87499.0,0.06849991]
[1743068407942,0.1711719,87500.0,87499.0,0.18277321]
[1743068408241,0.1711719,87500.0,87499.0,0.06849991]
[1743068408634,0.2039719,87500.0,87499.0,0.06849991]
[1743068408838,0.2039719,87500.0,87499.0,0.18277321]
[1743068410334,0.2039719,87500.0,87499.0,0.06849991]
[1743068410841,0.2039719,87500.0,87499.0,0.18277321]
[1743068411929,0.1711719,87500.0,87499.0,0.06849991]
[1743068412139,0.1711719,87500.0,87499.0,0.00599991]
[1743068412642,0.1711719,87500.0,87499.0,0.00539991]
[1743068416748,0.5319719,87500.0,87499.0,0.00539991]
[1743068418752,0.1142746,87498.0,87496.0,0.00045716]
[1743068418953,0.2877759,87497.0,87496.0,0.00053716]
[1743068419144,0.2887759,87497.0,87496.0,0.00053716]
[1743068420846,0.30304228,87497.0,87496.0,0.00053716]
[1743068422554,0.2887759,87497.0,87496.0,0.00053716]
[1743068424053,0.2887759,87497.0,87484.0,8e-05]
[1743068424054,0.0571393,87495.0,87484.0,8e-05]
[1743068424252,0.3608,87485.0,87480.0,0.00045724]
[1743068424452,0.1142968,87481.0,87480.0,0.00045724]
[1743068424644,0.1152968,87481.0,87480.0,0.00045724]
[1743068424849,0.1783968,87481.0,87480.0,0.00045724]
[1743068425050,0.1783968,87481.0,87480.0,0.00053724]
[1743068425251,0.1783968,87481.0,87480.0,0.00045724]
[1743068425853,0.18990508,87481.0,87480.0,0.00045724]
[1743068429555,0.1143059,87474.0,87473.0,8e-05]
[1743068429859,0.5855059,87474.0,87473.0,0.00068]
[1743068430059,0.6843059,87474.0,87473.0,0.00068]
[1743068430258,0.1143072,87473.0,87472.0,0.00017139]
[1743068430555,0.11534721,87473.0,87472.0,0.00017139]
[1743068430752,0.18004721,87473.0,87472.0,0.00017139]
[1743068438769,0.54084721,87473.0,87472.0,0.00017139]
[1743068450472,0.56492894,87473.0,87472.0,0.00017139]
[1743068454368,0.57915929,87473.0,87472.0,0.00017139]
[1743068455169,0.54084721,87473.0,87472.0,0.00017139]
[1743068455369,0.56463947,87473.0,87472.0,0.00017139]
[1743068456775,0.57892886,87473.0,87472.0,0.00017139]
[1743068457276,0.56463947,87473.0,87472.0,0.00017139]
[1743068457671,0.55513856,87473.0,87472.0,0.00017139]
[1743068458067,0.66553856,87473.0,87472.0,0.00017139]
[1743068460679,0.65124721,87473.0,87472.0,0.00017139]
[1743068461076,0.6655413,87473.0,87472.0,0.00017139]
[1743068462582,0.5551413,87473.0,87472.0,0.00017139]
[1743068462782,0.6655413,87473.0,87472.0,0.00017139]
[1743068463579,0.65124721,87473.0,87472.0,0.00017139]
[1743068463974,0.66554125,87473.0,87472.0,0.00017139]
[1743068464874,0.30474125,87473.0,87472.0,0.00017139]
[1743068465074,0.66554125,87473.0,87472.0,0.00017139]
[1743068467073,0.65124721,87473.0,87472.0,0.00017139]
[1743068467676,0.66554044,87473.0,87472.0,0.00017139]
[1743068467879,0.69624044,87473.0,87472.0,0.00017139]
[1743068468078,0.68194721,87473.0,87472.0,0.00017139]
[1743068470573,0.69624077,87473.0,87472.0,0.00017139]
[1743068472084,0.68194721,87473.0,87472.0,0.00017139]
[1743068473176,0.70461631,87473.0,87472.0,0.00017139]
[1743068473576,0.68194721,87473.0,87472.0,0.00017139]
[1743068473973,0.69624061,87473.0,87472.0,0.00017139]
[1743068474183,0.47614721,87473.0,87472.0,0.00017139]
[1743068474880,0.47614721,87473.0,87472.0,1.50017139]
[1743068475086,0.47614721,87473.0,87472.0,0.00085139]
[1743068475272,0.47614721,87473.0,87472.0,0.12572143]
[1743068475478,0.00104001,87473.0,87472.0,0.12640143]
[1743068475683,0.0571416,87492.0,87472.0,1.72609293]
[1743068475878,0.1142831,87492.0,87488.0,0.1142876]
[1743068476077,0.42219515,87494.0,87493.0,0.1142811]
[1743068476273,0.42287515,87494.0,87493.0,0.1149611]
[1743068476479,0.42287515,87494.0,87493.0,1.50068]
[1743068476978,0.42287515,87494.0,87493.0,0.06198]
[1743068477286,0.42287515,87494.0,87493.0,0.0613]
[1743068477487,0.48547515,87494.0,87493.0,0.0613]
[1743068478680,0.1775605,87494.0,87493.0,0.0623]
[1743068481983,0.5383605,87494.0,87493.0,0.0623]
[1743068489296,0.5383605,87494.0,87493.0,0.001]
[1743068490494,0.5393605,87494.0,87493.0,0.001]
[1743068490689,0.1142824,87492.0,87491.0,8e-05]
[1743068490895,0.11488241,87492.0,87491.0,8e-05]
[1743068491199,0.21128241,87492.0,87491.0,8e-05]
[1743068492193,0.57208241,87492.0,87491.0,8e-05]
[1743068492900,0.57208241,87492.0,87487.0,0.03048]
[1743068492901,0.1142876,87488.0,87487.0,0.0304]
[1743068493198,0.11488761,87488.0,87487.0,0.0304]
[1743068493501,0.17938761,87488.0,87487.0,0.0304]
[1743068495998,0.1142902,87486.0,87485.0,8e-05]
[1743068496203,0.114302,87477.0,87476.0,0.0621]
[1743068496402,0.114302,87477.0,87476.0,0.06278]
[1743068496604,0.178962,87477.0,87476.0,0.03148]
[1743068496898,0.178202,87477.0,87476.0,0.03148]
[1743068497500,0.177202,87477.0,87476.0,0.03148]
[1743068497999,0.18916713,87477.0,87476.0,0.0308]
[1743068498394,0.18916713,87477.0,87476.0,0.03148]
[1743068509012,0.18916713,87477.0,87476.0,0.06158]
[1743068510301,0.18916713,87477.0,87476.0,0.09338]
[1743068510509,0.11390201,87477.0,87476.0,0.2076833]
[1743068510710,0.113302,87477.0,87476.0,0.2076833]
[1743068511797,0.113302,87477.0,87476.0,0.21888538]
[1743068513512,0.113982,87477.0,87476.0,0.21888538]
[1743068516212,0.113302,87477.0,87476.0,0.21888538]
[1743068519210,0.0305,87484.0,87479.0,0.1142994]
[1743068519414,0.1714359,87486.0,87485.0,0.171434]
[1743068519710,0.1721159,87486.0,87485.0,0.172114]
[1743068520505,0.1721159,87486.0,87485.0,1.737514]
[1743068521106,0.2022159,87486.0,87485.0,1.737514]
[1743068523114,0.2015359,87486.0,87485.0,1.737514]
[1743068523520,0.2015359,87486.0,87485.0,0.237514]
[1743068523718,0.20213591,87486.0,87485.0,0.237514]
[1743068524220,0.2015359,87486.0,87485.0,0.237514]
[1743068533417,0.0872457,87486.0,87485.0,0.237514]
[1743068534020,0.0879257,87486.0,87485.0,1.737514]
[1743068534321,0.1195457,87486.0,87485.0,1.737514]
[1743068535620,0.05730659,87502.0,87496.0,0.0571385]
[1743068535820,0.05730659,87502.0,87501.0,0.1142706]
[1743068535821,0.0007714,87502.0,87501.0,0.1142706]
[1743068536021,8e-05,87506.0,87505.0,0.1713977]
[1743068536220,0.1142631,87507.0,87506.0,0.1142641]
[1743068536527,0.00088001,87507.0,87506.0,1.7088441]
[1743068536730,0.0571247,87518.0,87517.0,0.1713693]
[1743068536922,0.05772471,87518.0,87517.0,0.1722493]
[1743068537225,0.18350529,87518.0,87517.0,0.1151298]
[1743068537911,0.18350529,87518.0,87517.0,0.00088]
[1743068538118,0.114255,87513.0,87512.0,0.144655]
[1743068538417,0.11513501,87513.0,87512.0,0.00088]
[1743068538722,0.11513501,87513.0,87512.0,0.1151363]
[1743068538926,0.17713501,87513.0,87512.0,0.1151363]
[1743068539111,0.176255,87513.0,87512.0,0.1151363]
[1743068539516,0.181255,87513.0,87512.0,0.1151363]
[1743068540128,0.18213501,87513.0,87512.0,0.1151363]
[1743068540520,0.18213501,87513.0,87512.0,0.15752628]
[1743068540715,0.18713501,87513.0,87512.0,0.1460363]
[1743068540923,0.22003501,87513.0,87512.0,0.1460363]
[1743068541421,0.22003501,87513.0,87512.0,0.00088]
[1743068541616,0.219155,87513.0,87512.0,0.00088]
[1743068541821,0.22003501,87513.0,87512.0,0.00088]
[1743068542122,0.22003501,87513.0,87512.0,0.1151363]
[1743068543521,0.22003501,87513.0,87512.0,0.00088]
[1743068547131,0.1142576,87511.0,87510.0,0.0324]
[1743068547340,0.11521761,87511.0,87510.0,0.1476189]
[1743068547537,0.17801761,87511.0,87510.0,0.1476189]
[1743068548339,0.18201761,87511.0,87510.0,0.1476189]
[1743068548546,0.18701761,87511.0,87510.0,0.1476189]
[1743068548937,0.18701761,87511.0,87510.0,0.03336]
[1743068549741,0.18701761,87511.0,87510.0,0.00096]
[1743068550138,0.18701761,87511.0,87510.0,0.03116]
[1743068551240,0.18701761,87511.0,87510.0,0.00096]
[1743068551540,0.1142589,87510.0,87509.0,0.00017139]
[1743068551745,0.11513891,87510.0,87509.0,1.50105139]
[1743068551941,0.1773589,87510.0,87509.0,1.50105139]
[1743068552538,0.1773589,87510.0,87509.0,0.00105139]
[1743068552734,0.18323891,87510.0,87509.0,0.00105139]
[1743068553150,0.1823589,87510.0,87509.0,0.00105139]
[1743068553739,0.1863589,87510.0,87509.0,0.00105139]
[1743068554151,0.18731891,87510.0,87509.0,0.00105139]
[1743068554745,0.54811891,87510.0,87509.0,0.00105139]
[1743068556049,0.54811891,87510.0,87509.0,0.00017139]
[1743068556252,0.65839891,87510.0,87509.0,0.00017139]
[1743068567648,0.65839891,87510.0,87509.0,9e-08]
[1743068568257,0.80839891,87510.0,87509.0,9e-08]
[1743068568463,0.83043385,87510.0,87509.0,9e-08]
[1743068568858,0.83043385,87510.0,87480.0,0.00045724]
[1743068568859,0.1142915,87485.0,87481.0,0.20457115]
[1743068569163,0.47597151,87485.0,87484.0,0.03114]
[1743068569369,0.47597151,87485.0,87484.0,0.03098]
[1743068569668,0.57247151,87485.0,87484.0,0.03098]
[1743068572069,0.58114857,87485.0,87484.0,0.03098]
[1743068572259,0.58114857,87485.0,87484.0,0.0301]
[1743068572967,0.59238715,87485.0,87484.0,0.0301]
[1743068575257,0.52878715,87485.0,87484.0,0.0301]
[1743068580069,0.55878715,87485.0,87484.0,0.0301]
[1743068588868,0.52878715,87485.0,87484.0,0.0301]
[1743068589566,0.52878715,87485.0,87484.0,0.03018]
[1743068589766,0.56018715,87485.0,87484.0,0.03018]
[1743068592671,0.59158715,87485.0,87484.0,0.03018]
[1743068593375,0.59158715,87485.0,87484.0,0.0301]
[1743068593779,0.59158715,87485.0,87484.0,0.03018]
[1743068594968,0.59158715,87485.0,87484.0,0.03106]
[1743068595184,0.56018715,87485.0,87484.0,0.03106]
[1743068595774,0.56018715,87485.0,87484.0,0.03018]
[1743068598972,0.56018715,87485.0,87484.0,0.0301]
[1743068599377,0.56018715,87485.0,87484.0,0.03018]
[1743068606180,0.48721009,87485.0,87484.0,0.03018]
[1743068607083,0.51721009,87485.0,87484.0,0.03018]
[1743068609582,0.48721009,87485.0,87484.0,0.03018]
[1743068609781,0.51861009,87485.0,87484.0,0.03018]
[1743068614089,0.62889009,87485.0,87484.0,0.03018]
[1743068615488,0.59749009,87485.0,87484.0,0.03018]
[1743068617784,0.23669009,87485.0,87484.0,0.03018]
[1743068617991,0.11517151,87485.0,87484.0,0.03106]
[1743068618179,0.11517151,87485.0,87484.0,0.04170709]
[1743068618379,0.11517151,87485.0,87484.0,0.03106]
[1743068618579,0.11517151,87485.0,87484.0,1.53106]
[1743068618791,0.1142915,87485.0,87484.0,1.6779528]
[1743068619176,0.0571442,87488.0,87487.0,0.1142889]
[1743068619376,0.0571442,87488.0,87487.0,0.1152089]
[1743068619778,0.05802421,87488.0,87487.0,0.1152089]
[1743068619986,0.05802421,87488.0,87487.0,0.1785089]
[1743068620292,0.05802421,87488.0,87487.0,1.6785089]
[1743068622893,0.05802421,87488.0,87487.0,0.1785089]
[1743068628387,0.05802421,87488.0,87487.0,1.6785089]
[1743068628589,0.0571442,87488.0,87487.0,1.6785089]
[1743068630984,0.0571374,87498.0,87492.0,0.1142824]
[1743068631189,0.0571274,87514.0,87500.0,0.1714046]
[1743068631190,0.0571354,87501.0,87500.0,0.1714046]
[1743068631395,0.05801541,87501.0,87500.0,0.18351441]
[1743068631697,0.05801541,87501.0,87500.0,1.68351441]
[1743068631997,0.0571354,87501.0,87500.0,1.68351441]
[1743068632386,0.0571342,87503.0,87502.0,0.114268]
[1743068632707,0.0571342,87503.0,87502.0,0.115148]
[1743068633199,0.1204342,87503.0,87502.0,0.115148]
[1743068633500,0.13177513,87503.0,87502.0,0.00088]
[1743068634289,0.13577513,87503.0,87502.0,0.00088]
[1743068634891,0.13877513,87503.0,87502.0,0.1151493]
[1743068636104,0.13969513,87503.0,87502.0,0.1151493]
[1743068636590,0.13877513,87503.0,87502.0,0.1151493]
[1743068638893,0.13965514,87503.0,87502.0,0.1151493]
[1743068639603,0.12831421,87503.0,87502.0,0.1151493]
[1743068640811,0.1274342,87503.0,87502.0,0.1151493]
[1743068642000,0.1274342,87503.0,87502.0,0.00088]
[1743068642302,0.1274342,87503.0,87502.0,0.1151493]
[1743068642601,0.1274342,87503.0,87502.0,0.00088]
[1743068643399,0.1274342,87503.0,87502.0,0.1151493]
[1743068648108,0.1274342,87503.0,87502.0,0.00088]
[1743068648299,0.1274342,87503.0,87502.0,0.1151493]
[1743068648900,0.1274342,87503.0,87502.0,0.1473493]
[1743068650604,0.1274342,87503.0,87502.0,0.1791493]
[1743068652203,0.1274342,87503.0,87502.0,0.06488]
[1743068652914,0.1274342,87503.0,87502.0,0.1469493]
[1743068653213,0.1274342,87503.0,87502.0,0.03268]
[1743068654004,0.1274342,87503.0,87502.0,0.00088]
[1743068654507,0.1142693,87502.0,87501.0,8e-05]
[1743068654712,0.1142693,87502.0,87501.0,0.00096]
[1743068654914,0.1785693,87502.0,87501.0,0.00096]
[1743068655111,0.1785693,87502.0,87501.0,0.06356]
[1743068655310,0.1785693,87502.0,87501.0,0.1778306]
[1743068655715,0.1815693,87502.0,87501.0,0.1778306]
[1743068656520,0.1815693,87502.0,87501.0,0.06356]
[1743068658316,0.1815693,87502.0,87501.0,0.1778306]
[1743068658517,0.1835693,87502.0,87501.0,0.1778306]
[1743068658719,0.1835693,87502.0,87501.0,0.06356]
[1743068659315,0.1835693,87502.0,87501.0,0.1778306]
[1743068664223,0.1835693,87502.0,87501.0,0.06356]
[1743068664834,0.1835693,87502.0,87501.0,0.1778306]
[1743068674940,0.1835693,87502.0,87501.0,0.06356]
[1743068677437,0.1835693,87502.0,87501.0,0.03196]
[1743068678236,0.1835693,87502.0,87501.0,0.03188]
[1743068679040,0.1835693,87502.0,87501.0,0.00088]
[1743068680143,0.18444931,87502.0,87501.0,0.00088]
[1743068682240,0.1142706,87501.0,87500.0,8e-05]
[1743068682439,0.14705061,87501.0,87500.0,0.00096]
[1743068682654,0.20825061,87501.0,87500.0,0.00096]
[1743068683450,0.21025061,87501.0,87500.0,0.00096]
[1743068683950,0.21325061,87501.0,87500.0,0.00096]
[1743068686847,0.21325061,87501.0,87500.0,0.00088]
[1743068687958,0.1142719,87500.0,87499.0,8e-05]
[1743068688156,0.1151919,87500.0,87499.0,0.0651]
[1743068688358,0.1787919,87500.0,87499.0,0.0651]
[1743068688560,0.1787919,87500.0,87499.0,1.5651]
[1743068689148,0.1807919,87500.0,87499.0,1.5651]
[1743068690463,0.1798719,87500.0,87499.0,1.5651]
[1743068690850,0.18075191,87500.0,87499.0,1.5651]
[1743068691259,0.18375191,87500.0,87499.0,1.5651]
[1743068692957,0.1828719,87500.0,87499.0,1.5651]
[1743068693356,0.18347191,87500.0,87499.0,1.5651]
[1743068694156,0.18347191,87500.0,87499.0,0.0651]
[1743068694362,0.18347191,87500.0,87499.0,0.06418]
[1743068694558,0.18347191,87500.0,87499.0,0.06506]
[1743068694762,0.1828719,87500.0,87499.0,0.06506]
[1743068695265,0.18347191,87500.0,87499.0,0.06506]
[1743068695763,0.1828719,87500.0,87499.0,0.06506]
[1743068697265,0.18383191,87500.0,87499.0,0.06506]
[1743068697565,0.1828719,87500.0,87499.0,0.06506]
[1743068699565,0.18375191,87500.0,87499.0,0.06506]
[1743068708663,0.1828719,87500.0,87499.0,0.06506]
[1743068712066,0.1508719,87500.0,87499.0,0.1793333]
[1743068712269,0.1192719,87500.0,87499.0,0.1793333]
[1743068712967,0.1192719,87500.0,87499.0,0.06506]
[1743068713774,0.1192719,87500.0,87499.0,0.1793333]
[1743068715277,0.1192719,87500.0,87499.0,0.38390445]
[1743068718670,0.1192719,87500.0,87499.0,0.1793333]
[1743068719578,0.1492719,87500.0,87499.0,0.1793333]
[1743068720774,0.1192719,87500.0,87499.0,0.1793333]
[1743068727985,0.1509719,87500.0,87499.0,0.1793333]
[1743068729790,0.1836719,87500.0,87499.0,0.1793333]
[1743068730184,0.1836719,87500.0,87499.0,0.38390445]
[1743068730482,0.1836719,87500.0,87499.0,0.26963115]
[1743068730681,0.1836719,87500.0,87499.0,0.20545115]
[1743068730877,0.21743191,87500.0,87499.0,0.20545115]
[1743068731389,0.2164719,87500.0,87499.0,0.20545115]
[1743068733178,0.2164719,87500.0,87499.0,0.00088]
[1743068733791,0.21735191,87500.0,87499.0,0.00088]
[1743068742489,0.2164719,87500.0,87499.0,0.00088]
[1743068742684,0.21735191,87500.0,87499.0,0.00088]
[1743068744389,0.2164719,87500.0,87499.0,0.00088]
[1743068744894,0.21735191,87500.0,87499.0,0.00088]
[1743068760702,0.18455191,87500.0,87499.0,0.00088]
[1743068765205,0.15185191,87500.0,87499.0,0.00088]
[1743068765406,0.00588001,87500.0,87499.0,0.1151533]
[1743068765609,0.00024,87504.0,87503.0,0.114268]
[1743068765808,0.0142769,87517.0,87503.0,0.114268]
[1743068765809,0.1713745,87518.0,87516.0,0.0571255]
[1743068766006,0.17249451,87518.0,87517.0,0.2086498]
[1743068766207,0.17249451,87518.0,87517.0,0.09552]
[1743068766611,0.17249451,87518.0,87517.0,0.2097698]
[1743068766811,0.17249451,87518.0,87517.0,0.09552]
[1743068767913,0.17249451,87518.0,87517.0,0.2097698]
[1743068769105,0.17749451,87518.0,87517.0,0.2097698]
[1743068786822,0.17749451,87518.0,87517.0,0.09552]
[1743068787317,0.17749451,87518.0,87517.0,0.2086498]
[1743068787524,0.17749451,87518.0,87517.0,0.2098098]
[1743068787715,0.24169451,87518.0,87517.0,0.2098098]
[1743068789920,0.24669451,87518.0,87517.0,0.2098098]
[1743068791525,0.24669451,87518.0,87517.0,0.09556]
[1743068793225,0.24669451,87518.0,87517.0,0.2098098]
[1743068798821,0.24669451,87518.0,87517.0,1.7098098]
[1743068804324,0.24669451,87518.0,87517.0,1.59556]
[1743068804527,0.24669451,87518.0,87517.0,1.56396]
[1743068804734,0.24669451,87518.0,87517.0,1.6782098]
[1743068805034,0.24669451,87518.0,87517.0,1.56396]
[1743068805933,0.24669451,87518.0,87517.0,1.6782098]
[1743068806627,0.24669451,87518.0,87517.0,1.56396]
[1743068810233,0.24669451,87518.0,87517.0,1.6782098]
[1743068817532,0.24669451,87518.0,87517.0,1.56396]
[1743068820148,0.24669451,87518.0,87517.0,1.6782098]
[1743068820538,0.24669451,87518.0,87517.0,1.56396]
[1743068821043,0.24669451,87518.0,87517.0,1.6782098]
[1743068822650,0.24669451,87518.0,87517.0,1.56396]
[1743068823139,0.24669451,87518.0,87517.0,1.6782098]
[1743068823544,0.21579451,87518.0,87517.0,1.6782098]
[1743068828150,0.2146745,87518.0,87517.0,1.6782098]
[1743068845464,0.2146745,87518.0,87517.0,1.56396]
[1743068845770,0.2146745,87518.0,87517.0,1.6782098]
[1743068846968,0.2146745,87518.0,87517.0,1.56396]